[Event "Titled Tuesday Blitz May 31 Early 2022"]
[White "Terry, Renato"]
[Black "Bodnaruk, Anastasia"]
[WhiteFideId "3803457"]
[BlackFideId "4181751"]
[WhiteElo "2577"]
[BlackElo "2332"]
[Result "1-0"]
[Round "05"]
[TimeControl "180+1"]
[Date "2022.06.01"]
[WhiteClock "0:00:15"]
[BlackClock "0:00:03"]

1. d4 {[%clk 0:03:00]}  Nf6 {[%clk 0:02:59]} 2. Bg5 {[%clk 0:03:00]}  d5 {[%clk 0:02:58]} 3. Bxf6 {[%clk 0:02:58]}  exf6 {[%clk 0:02:55]} 4. e3 {[%clk 0:02:56]}  c6 {[%clk 0:02:51]} 5. c4 {[%clk 0:02:56]}  dxc4 {[%clk 0:02:51]} 6. Bxc4 {[%clk 0:02:56]}  Bd6 {[%clk 0:02:52]} 7. Nc3 {[%clk 0:02:54]}  O-O {[%clk 0:02:47]} 8. Qc2 {[%clk 0:02:52]}  f5 {[%clk 0:02:47]} 9. Nf3 {[%clk 0:02:51]}  Nd7 {[%clk 0:02:45]} 10. O-O {[%clk 0:02:45]}  Nf6 {[%clk 0:02:45]} 11. a3 {[%clk 0:02:38]}  Qe7 {[%clk 0:02:41]} 12. g3 {[%clk 0:02:02]}  Ne4 {[%clk 0:02:20]} 13. Nd2 {[%clk 0:01:54]}  Ng5 {[%clk 0:01:56]} 14. Rfe1 {[%clk 0:01:53]}  Qf6 {[%clk 0:01:50]} 15. Bf1 {[%clk 0:01:52]}  Qh6 {[%clk 0:01:40]} 16. h4 {[%clk 0:01:41]}  Ne6 {[%clk 0:01:40]} 17. Nc4 {[%clk 0:01:34]}  Bc7 {[%clk 0:01:26]} 18. d5 {[%clk 0:01:34]}  Nc5 {[%clk 0:01:17]} 19. b4 {[%clk 0:01:34]}  Nd7 {[%clk 0:01:10]} 20. dxc6 {[%clk 0:00:44]}  Qxc6 {[%clk 0:01:03]} 21. Rad1 {[%clk 0:00:34]}  b5 {[%clk 0:00:40]} 22. Bg2 {[%clk 0:00:32]}  Qxc4 {[%clk 0:00:39]} 23. Bxa8 {[%clk 0:00:32]}  Nb6 {[%clk 0:00:38]} 24. Bg2 {[%clk 0:00:27]}  Be5 {[%clk 0:00:37]} 25. Rc1 {[%clk 0:00:27]}  Be6 {[%clk 0:00:30]} 26. Bf1 {[%clk 0:00:25]}  Qg4 {[%clk 0:00:27]} 27. Nxb5 {[%clk 0:00:23]}  Rc8 {[%clk 0:00:19]} 28. Qd1 {[%clk 0:00:22]}  h5 {[%clk 0:00:06]} 29. Rxc8+ {[%clk 0:00:21]}  Bxc8 {[%clk 0:00:05]} 30. Qxg4 {[%clk 0:00:20]}  hxg4 {[%clk 0:00:05]} 31. Nxa7 {[%clk 0:00:21]}  Be6 {[%clk 0:00:05]} 32. Nc6 {[%clk 0:00:21]}  Bb2 {[%clk 0:00:05]} 33. Nd4 {[%clk 0:00:19]}  Bxa3 {[%clk 0:00:04]} 34. Nxe6 {[%clk 0:00:18]}  fxe6 {[%clk 0:00:04]} 35. Rb1 {[%clk 0:00:18]}  Kf7 {[%clk 0:00:03]} 36. Bg2 {[%clk 0:00:15]}  Ke7 {[%clk 0:00:03]} 37. Kf1 {[%clk 0:00:16]}  Kd6 {[%clk 0:00:02]} 38. Ke2 {[%clk 0:00:16]}  e5 {[%clk 0:00:03]} 39. Kd3 {[%clk 0:00:16]}  e4+ {[%clk 0:00:03]} 40. Kc3 {[%clk 0:00:15]} 1-0


[Site "https://www.chess.com"]

[Event "Titled Tuesday Blitz May 31 Early 2022"]
[White "Vajda, Levente"]
[Black "Secer, Ata"]
[WhiteFideId "1203975"]
[BlackFideId "6303293"]
[WhiteElo "2573"]
[BlackElo "2282"]
[Result "1/2-1/2"]
[Round "05"]
[TimeControl "180+1"]
[Date "2022.06.01"]
[WhiteClock "0:00:12"]
[BlackClock "0:00:12"]

1. e4 {[%clk 0:03:00]}  c5 {[%clk 0:02:58]} 2. c3 {[%clk 0:03:00]}  Nf6 {[%clk 0:02:58]} 3. e5 {[%clk 0:03:00]}  Nd5 {[%clk 0:02:59]} 4. d4 {[%clk 0:03:01]}  cxd4 {[%clk 0:03:00]} 5. Nf3 {[%clk 0:03:01]}  e6 {[%clk 0:03:00]} 6. cxd4 {[%clk 0:03:00]}  d6 {[%clk 0:03:01]} 7. Bc4 {[%clk 0:03:00]}  Be7 {[%clk 0:03:02]} 8. O-O {[%clk 0:03:00]}  O-O {[%clk 0:03:02]} 9. Qe2 {[%clk 0:03:00]}  b6 {[%clk 0:03:03]} 10. Nc3 {[%clk 0:03:00]}  Nxc3 {[%clk 0:02:54]} 11. bxc3 {[%clk 0:03:01]}  Bb7 {[%clk 0:02:37]} 12. exd6 {[%clk 0:03:01]}  Bxd6 {[%clk 0:02:35]} 13. Bd3 {[%clk 0:02:57]}  Nd7 {[%clk 0:02:31]} 14. h3 {[%clk 0:02:29]}  Qc7 {[%clk 0:02:28]} 15. Bd2 {[%clk 0:02:28]}  Bf4 {[%clk 0:02:28]} 16. Rfd1 {[%clk 0:02:18]}  Bxd2 {[%clk 0:02:17]} 17. Qxd2 {[%clk 0:02:17]}  Bxf3 {[%clk 0:02:16]} 18. gxf3 {[%clk 0:02:18]}  Nf6 {[%clk 0:02:13]} 19. Rac1 {[%clk 0:02:08]}  Rfd8 {[%clk 0:02:12]} 20. c4 {[%clk 0:01:54]}  Rd7 {[%clk 0:02:03]} 21. Qe3 {[%clk 0:01:19]}  Rad8 {[%clk 0:02:01]} 22. Be4 {[%clk 0:01:19]}  e5 {[%clk 0:01:46]} 23. d5 {[%clk 0:01:08]}  g6 {[%clk 0:01:28]} 24. c5 {[%clk 0:01:08]}  Nxd5 {[%clk 0:01:12]} 25. Bxd5 {[%clk 0:00:56]}  Rxd5 {[%clk 0:01:10]} 26. Rxd5 {[%clk 0:00:53]}  Rxd5 {[%clk 0:01:11]} 27. cxb6 {[%clk 0:00:46]}  Qxb6 {[%clk 0:01:00]} 28. Qxb6 {[%clk 0:00:44]}  axb6 {[%clk 0:01:00]} 29. Rb1 {[%clk 0:00:44]}  b5 {[%clk 0:00:44]} 30. Rb4 {[%clk 0:00:44]}  Kg7 {[%clk 0:00:42]} 31. a4 {[%clk 0:00:43]}  bxa4 {[%clk 0:00:43]} 32. Rxa4 {[%clk 0:00:44]}  Rd4 {[%clk 0:00:23]} 33. Ra7 {[%clk 0:00:43]}  g5 {[%clk 0:00:23]} 34. Kg2 {[%clk 0:00:43]}  Kg6 {[%clk 0:00:23]} 35. Re7 {[%clk 0:00:42]}  f6 {[%clk 0:00:23]} 36. Re8 {[%clk 0:00:40]}  h5 {[%clk 0:00:22]} 37. Rg8+ {[%clk 0:00:40]}  Kf5 {[%clk 0:00:23]} 38. Rh8 {[%clk 0:00:40]}  h4 {[%clk 0:00:22]} 39. Ra8 {[%clk 0:00:37]}  Kf4 {[%clk 0:00:19]} 40. Ra6 {[%clk 0:00:19]}  f5 {[%clk 0:00:19]} 41. Ra3 {[%clk 0:00:18]}  Rb4 {[%clk 0:00:19]} 42. Rc3 {[%clk 0:00:18]}  Ra4 {[%clk 0:00:19]} 43. Rb3 {[%clk 0:00:18]}  Ra2 {[%clk 0:00:14]} 44. Rb4+ {[%clk 0:00:16]}  e4 {[%clk 0:00:15]} 45. fxe4 {[%clk 0:00:16]}  fxe4 {[%clk 0:00:16]} 46. Rb3 {[%clk 0:00:14]}  Re2 {[%clk 0:00:14]} 47. Kf1 {[%clk 0:00:14]}  Rd2 {[%clk 0:00:13]} 48. Kg2 {[%clk 0:00:14]}  Rc2 {[%clk 0:00:12]} 49. Ra3 {[%clk 0:00:13]}  Re2 {[%clk 0:00:11]} 50. Kf1 {[%clk 0:00:13]}  Rd2 {[%clk 0:00:12]} 51. Kg2 {[%clk 0:00:12]}  Rc2 {[%clk 0:00:11]} 52. Rb3 {[%clk 0:00:12]}  Rd2 {[%clk 0:00:11]} 53. Ra3 {[%clk 0:00:12]}  Rc2 {[%clk 0:00:11]} 54. Rb3 {[%clk 0:00:12]}  Rd2 {[%clk 0:00:12]} 55. Ra3 {[%clk 0:00:12]} 1/2-1/2


[Site "https://www.chess.com"]

[Event "Titled Tuesday Blitz May 31 Early 2022"]
[White "Xu, Yi"]
[Black "Atakhan, Abtin"]
[WhiteFideId "8605564"]
[BlackFideId "22502203"]
[WhiteElo "2471"]
[BlackElo "2094"]
[Result "1-0"]
[Round "05"]
[TimeControl "180+1"]
[Date "2022.05.31"]
[WhiteClock "0:00:33"]
[BlackClock "0:00:51"]

1. e4 {[%clk 0:02:59]}  c5 {[%clk 0:02:59]} 2. Nf3 {[%clk 0:02:57]}  Nc6 {[%clk 0:02:58]} 3. d4 {[%clk 0:02:57]}  cxd4 {[%clk 0:02:59]} 4. Nxd4 {[%clk 0:02:58]}  g6 {[%clk 0:02:59]} 5. c4 {[%clk 0:02:57]}  Nf6 {[%clk 0:03:00]} 6. Nc3 {[%clk 0:02:56]}  d6 {[%clk 0:03:00]} 7. Be2 {[%clk 0:02:55]}  Nxd4 {[%clk 0:02:59]} 8. Qxd4 {[%clk 0:02:54]}  Bg7 {[%clk 0:03:00]} 9. Bg5 {[%clk 0:02:53]}  O-O {[%clk 0:02:59]} 10. Qd2 {[%clk 0:02:46]}  a5 {[%clk 0:03:00]} 11. O-O {[%clk 0:02:42]}  a4 {[%clk 0:03:00]} 12. Rad1 {[%clk 0:02:39]}  Qa5 {[%clk 0:02:56]} 13. Bxf6 {[%clk 0:02:31]}  Bxf6 {[%clk 0:02:55]} 14. Nd5 {[%clk 0:02:31]}  Qxd2 {[%clk 0:02:49]} 15. Nxf6+ {[%clk 0:02:32]}  Kg7 {[%clk 0:02:49]} 16. Nh5+ {[%clk 0:02:31]}  gxh5 {[%clk 0:02:50]} 17. Rxd2 {[%clk 0:02:30]}  Be6 {[%clk 0:02:50]} 18. Rc1 {[%clk 0:02:21]}  Rfc8 {[%clk 0:02:49]} 19. Rdc2 {[%clk 0:02:18]}  Rc5 {[%clk 0:02:49]} 20. f3 {[%clk 0:02:07]}  h4 {[%clk 0:02:45]} 21. Kf2 {[%clk 0:02:06]}  Rac8 {[%clk 0:02:42]} 22. Bd3 {[%clk 0:02:03]}  Kf6 {[%clk 0:02:35]} 23. Ke3 {[%clk 0:02:03]}  Rg8 {[%clk 0:02:25]} 24. f4 {[%clk 0:01:56]}  h3 {[%clk 0:02:22]} 25. g3 {[%clk 0:01:56]}  h5 {[%clk 0:02:17]} 26. b4 {[%clk 0:01:50]}  axb3 {[%clk 0:02:17]} 27. axb3 {[%clk 0:01:49]}  h4 {[%clk 0:02:17]} 28. b4 {[%clk 0:01:47]}  Rh5 {[%clk 0:02:13]} 29. g4 {[%clk 0:01:34]}  Bxg4 {[%clk 0:02:08]} 30. c5 {[%clk 0:01:20]}  Bd7 {[%clk 0:02:00]} 31. cxd6 {[%clk 0:01:16]}  exd6 {[%clk 0:02:01]} 32. Rc7 {[%clk 0:01:02]}  Bc6 {[%clk 0:02:01]} 33. Bc4 {[%clk 0:00:56]}  d5 {[%clk 0:01:56]} 34. e5+ {[%clk 0:00:53]}  Ke6 {[%clk 0:01:50]} 35. Bf1 {[%clk 0:00:50]}  d4+ {[%clk 0:01:36]} 36. Kxd4 {[%clk 0:00:47]}  Rd8+ {[%clk 0:01:30]} 37. Ke3 {[%clk 0:00:47]}  Bg2 {[%clk 0:01:14]} 38. Bc4+ {[%clk 0:00:47]}  Bd5 {[%clk 0:01:13]} 39. Rd1 {[%clk 0:00:44]}  f6 {[%clk 0:01:07]} 40. Rxd5 {[%clk 0:00:34]}  Rxd5 {[%clk 0:01:08]} 41. Rc5 {[%clk 0:00:34]}  fxe5 {[%clk 0:01:04]} 42. Rxd5 {[%clk 0:00:32]}  exf4+ {[%clk 0:01:02]} 43. Ke4 {[%clk 0:00:32]}  Rxd5 {[%clk 0:00:51]} 44. Bxd5+ {[%clk 0:00:33]}  Kd6 {[%clk 0:00:51]} 45. Bxb7 {[%clk 0:00:33]} 1-0


[Site "https://www.chess.com"]

[Event "Titled Tuesday Blitz May 31 Early 2022"]
[White "Andreikin, Dmitry"]
[Black "Niemann, Hans Moke"]
[WhiteFideId "4158814"]
[BlackFideId "2093596"]
[WhiteElo "2736"]
[BlackElo "2632"]
[Result "1-0"]
[Round "06"]
[TimeControl "180+1"]
[Date "2022.05.31"]
[WhiteClock "0:00:11"]
[BlackClock "0:00:04"]

1. d4 {[%clk 0:03:00]}  Nf6 {[%clk 0:02:57]} 2. c4 {[%clk 0:03:01]}  g6 {[%clk 0:02:56]} 3. Nc3 {[%clk 0:03:00]}  Bg7 {[%clk 0:02:55]} 4. e4 {[%clk 0:03:00]}  d6 {[%clk 0:02:56]} 5. h3 {[%clk 0:03:00]}  Nbd7 {[%clk 0:02:56]} 6. Be3 {[%clk 0:02:56]}  e5 {[%clk 0:02:56]} 7. d5 {[%clk 0:02:55]}  h5 {[%clk 0:02:57]} 8. Qd2 {[%clk 0:02:47]}  Nc5 {[%clk 0:02:55]} 9. f3 {[%clk 0:02:47]}  a5 {[%clk 0:02:51]} 10. O-O-O {[%clk 0:02:42]}  h4 {[%clk 0:02:48]} 11. Bd3 {[%clk 0:02:40]}  Nh5 {[%clk 0:02:45]} 12. Nge2 {[%clk 0:02:40]}  Bd7 {[%clk 0:02:39]} 13. Bc2 {[%clk 0:02:39]}  a4 {[%clk 0:02:36]} 14. Kb1 {[%clk 0:02:39]}  b6 {[%clk 0:02:25]} 15. Rhe1 {[%clk 0:02:38]}  O-O {[%clk 0:02:22]} 16. Nb5 {[%clk 0:02:35]}  Bf6 {[%clk 0:02:09]} 17. Nec3 {[%clk 0:02:15]}  Nf4 {[%clk 0:02:08]} 18. Bxf4 {[%clk 0:02:15]}  exf4 {[%clk 0:02:09]} 19. Qxf4 {[%clk 0:02:16]}  Be5 {[%clk 0:01:58]} 20. Qd2 {[%clk 0:02:05]}  Qf6 {[%clk 0:01:51]} 21. Rf1 {[%clk 0:01:57]}  g5 {[%clk 0:01:49]} 22. Nxc7 {[%clk 0:01:53]}  a3 {[%clk 0:01:29]} 23. Nxa8 {[%clk 0:01:47]}  Rxa8 {[%clk 0:01:28]} 24. f4 {[%clk 0:01:36]}  gxf4 {[%clk 0:01:27]} 25. Ne2 {[%clk 0:01:35]}  axb2 {[%clk 0:01:24]} 26. Rxf4 {[%clk 0:01:08]}  Qd8 {[%clk 0:01:08]} 27. Nd4 {[%clk 0:01:07]}  Ra3 {[%clk 0:00:51]} 28. Rdf1 {[%clk 0:01:07]}  f6 {[%clk 0:00:19]} 29. Rxh4 {[%clk 0:01:05]}  Qe7 {[%clk 0:00:09]} 30. Nc6 {[%clk 0:00:36]}  Bxc6 {[%clk 0:00:05]} 31. Qh6 {[%clk 0:00:37]}  f5 {[%clk 0:00:02]} 32. Rxf5 {[%clk 0:00:30]}  Rg3 {[%clk 0:00:03]} 33. dxc6 {[%clk 0:00:23]}  Rxg2 {[%clk 0:00:03]} 34. Rg4+ {[%clk 0:00:21]}  Rxg4 {[%clk 0:00:03]} 35. hxg4 {[%clk 0:00:22]}  Ne6 {[%clk 0:00:04]} 36. c5 {[%clk 0:00:17]}  Nxc5 {[%clk 0:00:04]} 37. Qg6+ {[%clk 0:00:16]}  Bg7 {[%clk 0:00:03]} 38. Rg5 {[%clk 0:00:13]}  Ne6 {[%clk 0:00:03]} 39. Bb3 {[%clk 0:00:13]}  d5 {[%clk 0:00:04]} 40. Bxd5 {[%clk 0:00:12]}  Kh8 {[%clk 0:00:04]} 41. Qxe6 {[%clk 0:00:11]} 1-0


[Site "https://www.chess.com"]

[Event "Titled Tuesday Blitz May 31 Early 2022"]
[White "Aradhya, Garg"]
[Black "Bluebaum, Matthias"]
[WhiteFideId "25006746"]
[BlackFideId "24651516"]
[WhiteElo "2169"]
[BlackElo "2556"]
[Result "0-1"]
[Round "06"]
[TimeControl "180+1"]
[Date "2022.05.31"]
[WhiteClock "0:02:06"]
[BlackClock "0:01:30"]

1. d4 {[%clk 0:03:00]}  Nf6 {[%clk 0:03:00]} 2. Nf3 {[%clk 0:03:01]}  d5 {[%clk 0:02:59]} 3. c4 {[%clk 0:03:01]}  e6 {[%clk 0:03:00]} 4. Nc3 {[%clk 0:03:02]}  Bb4 {[%clk 0:03:00]} 5. Qa4+ {[%clk 0:03:02]}  Nc6 {[%clk 0:03:00]} 6. Bd2 {[%clk 0:03:02]}  O-O {[%clk 0:03:01]} 7. a3 {[%clk 0:03:02]}  Bxc3 {[%clk 0:02:57]} 8. Bxc3 {[%clk 0:03:03]}  Ne4 {[%clk 0:02:58]} 9. Rc1 {[%clk 0:03:01]}  Bd7 {[%clk 0:02:54]} 10. Qc2 {[%clk 0:03:01]}  Rc8 {[%clk 0:02:42]} 11. e3 {[%clk 0:03:00]}  f5 {[%clk 0:02:37]} 12. Bd3 {[%clk 0:02:56]}  Be8 {[%clk 0:02:37]} 13. O-O {[%clk 0:02:54]}  Bh5 {[%clk 0:02:37]} 14. b4 {[%clk 0:02:43]}  Rf6 {[%clk 0:02:04]} 15. Ne5 {[%clk 0:02:38]}  Nxe5 {[%clk 0:01:59]} 16. dxe5 {[%clk 0:02:39]}  Rh6 {[%clk 0:01:50]} 17. cxd5 {[%clk 0:02:22]}  Qh4 {[%clk 0:01:41]} 18. g3 {[%clk 0:02:06]}  Qxh2+ {[%clk 0:01:29]} 19. Kxh2 {[%clk 0:02:05]}  Bf3+ {[%clk 0:01:29]} 20. Kg1 {[%clk 0:02:06]}  Rh1# {[%clk 0:01:30]} 0-1


[Site "https://www.chess.com"]

[Event "Titled Tuesday Blitz May 31 Early 2022"]
[White "Cherniaiev, Tykhon"]
[Black "Suleymanli, Suleyman"]
[WhiteFideId "14182360"]
[BlackFideId "13416375"]
[WhiteElo "2289"]
[BlackElo "1598"]
[Result "1-0"]
[Round "06"]
[TimeControl "180+1"]
[Date "2022.06.01"]
[WhiteClock "0:00:01"]
[BlackClock "0:00:08"]

1. Nf3 {[%clk 0:03:00]}  d5 {[%clk 0:02:55]} 2. c4 {[%clk 0:02:59]}  e6 {[%clk 0:02:54]} 3. d4 {[%clk 0:02:59]}  Nf6 {[%clk 0:02:54]} 4. Nc3 {[%clk 0:02:54]}  Be7 {[%clk 0:02:53]} 5. cxd5 {[%clk 0:02:53]}  exd5 {[%clk 0:02:53]} 6. Bg5 {[%clk 0:02:54]}  O-O {[%clk 0:02:54]} 7. e3 {[%clk 0:02:54]}  c6 {[%clk 0:02:54]} 8. Bd3 {[%clk 0:02:54]}  Ne4 {[%clk 0:02:51]} 9. Bf4 {[%clk 0:02:46]}  f5 {[%clk 0:02:47]} 10. Ne5 {[%clk 0:02:44]}  Nd7 {[%clk 0:02:45]} 11. f3 {[%clk 0:02:39]}  Nxe5 {[%clk 0:02:40]} 12. Bxe5 {[%clk 0:02:37]}  Nxc3 {[%clk 0:02:18]} 13. bxc3 {[%clk 0:02:37]}  Bh4+ {[%clk 0:02:15]} 14. g3 {[%clk 0:02:36]}  Bf6 {[%clk 0:02:15]} 15. Bxf6 {[%clk 0:02:36]}  Qxf6 {[%clk 0:02:14]} 16. O-O {[%clk 0:02:36]}  h5 {[%clk 0:02:10]} 17. c4 {[%clk 0:02:20]}  Be6 {[%clk 0:02:06]} 18. Qb3 {[%clk 0:02:11]}  h4 {[%clk 0:01:50]} 19. Kf2 {[%clk 0:01:45]}  h3 {[%clk 0:01:32]} 20. Qxb7 {[%clk 0:01:36]}  dxc4 {[%clk 0:01:30]} 21. Be2 {[%clk 0:01:34]}  Bd5 {[%clk 0:01:26]} 22. Rac1 {[%clk 0:01:33]}  Rab8 {[%clk 0:01:25]} 23. Qxa7 {[%clk 0:01:24]}  Rb2 {[%clk 0:01:16]} 24. Rb1 {[%clk 0:01:18]}  Rd2 {[%clk 0:01:12]} 25. Rfd1 {[%clk 0:01:14]}  f4 {[%clk 0:00:42]} 26. Rxd2 {[%clk 0:00:20]}  fxe3+ {[%clk 0:00:40]} 27. Kxe3 {[%clk 0:00:20]}  Bxf3 {[%clk 0:00:40]} 28. Bxc4+ {[%clk 0:00:15]}  Kh8 {[%clk 0:00:26]} 29. Rf2 {[%clk 0:00:04]}  Qg5+ {[%clk 0:00:24]} 30. Kd3 {[%clk 0:00:04]}  Qg6+ {[%clk 0:00:25]} 31. Kc3 {[%clk 0:00:04]}  Qxb1 {[%clk 0:00:25]} 32. Qa3 {[%clk 0:00:04]}  Qe1+ {[%clk 0:00:24]} 33. Rd2 {[%clk 0:00:01]}  Qe3+ {[%clk 0:00:24]} 34. Rd3 {[%clk 0:00:01]}  Qe1+ {[%clk 0:00:24]} 35. Rd2 {[%clk 0:00:02]}  Re8 {[%clk 0:00:21]} 36. Kc2 {[%clk 0:00:02]}  Be4+ {[%clk 0:00:20]} 37. Bd3 {[%clk 0:00:02]}  Bd5 {[%clk 0:00:19]} 38. Qc3 {[%clk 0:00:02]}  Ra8 {[%clk 0:00:18]} 39. a3 {[%clk 0:00:01]}  Rb8 {[%clk 0:00:14]} 40. Re2 {[%clk 0:00:02]}  Qb1+ {[%clk 0:00:10]} 41. Kd2 {[%clk 0:00:02]}  Qg1 {[%clk 0:00:09]} 42. Kc2 {[%clk 0:00:01]}  Bb3+ {[%clk 0:00:08]} 43. Qxb3 {[%clk 0:00:01]}  Rxb3 {[%clk 0:00:08]} 44. Re8# {[%clk 0:00:01]} 1-0


[Site "https://www.chess.com"]

[Event "Titled Tuesday Blitz May 31 Early 2022"]
[White "Darini, Pouria"]
[Black "Harsha Bharathakoti"]
[WhiteFideId "12502200"]
[BlackFideId "5078776"]
[WhiteElo "2483"]
[BlackElo "2575"]
[Result "0-1"]
[Round "06"]
[TimeControl "180+1"]
[Date "2022.05.31"]
[WhiteClock "0:00:13"]
[BlackClock "0:00:12"]

1. d4 {[%clk 0:03:00]}  Nf6 {[%clk 0:02:59]} 2. Bg5 {[%clk 0:03:00]}  e6 {[%clk 0:02:54]} 3. Nd2 {[%clk 0:02:59]}  c5 {[%clk 0:02:53]} 4. e3 {[%clk 0:02:59]}  h6 {[%clk 0:02:53]} 5. Bxf6 {[%clk 0:02:59]}  Qxf6 {[%clk 0:02:53]} 6. Ngf3 {[%clk 0:02:55]}  d5 {[%clk 0:02:44]} 7. Ne5 {[%clk 0:02:53]}  Bd6 {[%clk 0:02:35]} 8. Bb5+ {[%clk 0:02:53]}  Kf8 {[%clk 0:02:34]} 9. Ndf3 {[%clk 0:02:40]}  a6 {[%clk 0:02:32]} 10. Bd3 {[%clk 0:02:38]}  Nc6 {[%clk 0:02:32]} 11. Nxc6 {[%clk 0:02:36]}  bxc6 {[%clk 0:02:32]} 12. O-O {[%clk 0:02:32]}  g6 {[%clk 0:02:29]} 13. Re1 {[%clk 0:02:18]}  Kg7 {[%clk 0:02:15]} 14. e4 {[%clk 0:02:19]}  Qd8 {[%clk 0:02:15]} 15. e5 {[%clk 0:02:18]}  Be7 {[%clk 0:02:15]} 16. c4 {[%clk 0:02:00]}  Rb8 {[%clk 0:02:13]} 17. b3 {[%clk 0:01:46]}  a5 {[%clk 0:02:10]} 18. Rc1 {[%clk 0:01:44]}  Qb6 {[%clk 0:02:09]} 19. dxc5 {[%clk 0:01:11]}  Bxc5 {[%clk 0:02:08]} 20. Qc2 {[%clk 0:01:12]}  Bb4 {[%clk 0:02:04]} 21. Red1 {[%clk 0:01:10]}  Ba3 {[%clk 0:01:59]} 22. Rb1 {[%clk 0:01:09]}  Rd8 {[%clk 0:01:53]} 23. h4 {[%clk 0:01:09]}  Be7 {[%clk 0:01:44]} 24. Qc1 {[%clk 0:00:55]}  Bb7 {[%clk 0:01:17]} 25. Qf4 {[%clk 0:00:48]}  c5 {[%clk 0:01:17]} 26. cxd5 {[%clk 0:00:39]}  exd5 {[%clk 0:01:17]} 27. h5 {[%clk 0:00:17]}  Qe6 {[%clk 0:01:17]} 28. hxg6 {[%clk 0:00:17]}  fxg6 {[%clk 0:01:17]} 29. Qg3 {[%clk 0:00:17]}  Rf8 {[%clk 0:01:13]} 30. Re1 {[%clk 0:00:18]}  g5 {[%clk 0:00:30]} 31. Rbc1 {[%clk 0:00:18]}  Rf4 {[%clk 0:00:29]} 32. Nd2 {[%clk 0:00:07]}  Rbf8 {[%clk 0:00:29]} 33. f3 {[%clk 0:00:08]}  Rh4 {[%clk 0:00:21]} 34. Nf1 {[%clk 0:00:06]}  a4 {[%clk 0:00:14]} 35. Ne3 {[%clk 0:00:06]}  Rd4 {[%clk 0:00:10]} 36. Bb1 {[%clk 0:00:05]}  axb3 {[%clk 0:00:09]} 37. axb3 {[%clk 0:00:05]}  Rb4 {[%clk 0:00:10]} 38. Bc2 {[%clk 0:00:05]}  c4 {[%clk 0:00:07]} 39. bxc4 {[%clk 0:00:05]}  dxc4 {[%clk 0:00:07]} 40. Kh1 {[%clk 0:00:05]}  Bc5 {[%clk 0:00:06]} 41. Ng4 {[%clk 0:00:04]}  Be7 {[%clk 0:00:06]} 42. Rb1 {[%clk 0:00:04]}  Rxb1 {[%clk 0:00:04]} 43. Rxb1 {[%clk 0:00:05]}  Bd5 {[%clk 0:00:05]} 44. Ne3 {[%clk 0:00:04]}  Bc6 {[%clk 0:00:04]} 45. Rd1 {[%clk 0:00:03]}  Rd8 {[%clk 0:00:04]} 46. Rxd8 {[%clk 0:00:03]}  Bxd8 {[%clk 0:00:04]} 47. Nf5+ {[%clk 0:00:03]}  Kf8 {[%clk 0:00:05]} 48. Qh3 {[%clk 0:00:03]}  Bc7 {[%clk 0:00:05]} 49. Nd4 {[%clk 0:00:03]}  Qxh3+ {[%clk 0:00:05]} 50. gxh3 {[%clk 0:00:04]}  Bd5 {[%clk 0:00:05]} 51. e6 {[%clk 0:00:04]}  Bb6 {[%clk 0:00:05]} 52. Nf5 {[%clk 0:00:02]}  Bxe6 {[%clk 0:00:05]} 53. Nxh6 {[%clk 0:00:03]}  Bxh3 {[%clk 0:00:04]} 54. Kh2 {[%clk 0:00:03]}  Be6 {[%clk 0:00:04]} 55. Kg3 {[%clk 0:00:03]}  Ke7 {[%clk 0:00:02]} 56. Nf5+ {[%clk 0:00:03]}  Kf6 {[%clk 0:00:03]} 57. Nh6 {[%clk 0:00:03]}  Ke5 {[%clk 0:00:02]} 58. Ng4+ {[%clk 0:00:02]}  Kd4 {[%clk 0:00:03]} 59. f4 {[%clk 0:00:03]}  Bc7 {[%clk 0:00:04]} 60. Kf3 {[%clk 0:00:03]}  Bxf4 {[%clk 0:00:04]} 61. Nf6 {[%clk 0:00:03]}  Kc3 {[%clk 0:00:04]} 62. Be4 {[%clk 0:00:02]}  Kb2 {[%clk 0:00:04]} 63. Bc6 {[%clk 0:00:01]}  c3 {[%clk 0:00:03]} 64. Bd5 {[%clk 0:00:02]}  Bxd5+ {[%clk 0:00:03]} 65. Nxd5 {[%clk 0:00:03]}  c2 {[%clk 0:00:04]} 66. Nb4 {[%clk 0:00:03]}  c1=Q {[%clk 0:00:04]} 67. Nd3+ {[%clk 0:00:04]}  Kc2 {[%clk 0:00:04]} 68. Nxc1 {[%clk 0:00:05]}  Kxc1 {[%clk 0:00:05]} 69. Kg4 {[%clk 0:00:06]}  Kd2 {[%clk 0:00:06]} 70. Kf3 {[%clk 0:00:07]}  Kd3 {[%clk 0:00:07]} 71. Kf2 {[%clk 0:00:07]}  Ke4 {[%clk 0:00:07]} 72. Kg2 {[%clk 0:00:08]}  g4 {[%clk 0:00:08]} 73. Kf1 {[%clk 0:00:09]}  Kf3 {[%clk 0:00:08]} 74. Kg1 {[%clk 0:00:10]}  g3 {[%clk 0:00:09]} 75. Kh1 {[%clk 0:00:11]}  g2+ {[%clk 0:00:10]} 76. Kg1 {[%clk 0:00:11]}  Be3+ {[%clk 0:00:10]} 77. Kh2 {[%clk 0:00:12]}  g1=Q+ {[%clk 0:00:11]} 78. Kh3 {[%clk 0:00:13]}  Qg3# {[%clk 0:00:12]} 0-1


[Site "https://www.chess.com"]

[Event "Titled Tuesday Blitz May 31 Early 2022"]
[White "Djokic, Mihailo"]
[Black "Bethke, Richard"]
[WhiteFideId "976440"]
[BlackFideId "12959243"]
[WhiteElo "2202"]
[BlackElo "2509"]
[Result "1-0"]
[Round "06"]
[TimeControl "180+1"]
[Date "2022.06.01"]
[WhiteClock "0:00:01"]
[BlackClock "0:00:01"]

1. e4 {[%clk 0:03:00]}  c5 {[%clk 0:02:59]} 2. Nf3 {[%clk 0:03:00]}  d6 {[%clk 0:03:00]} 3. d4 {[%clk 0:03:00]}  cxd4 {[%clk 0:03:01]} 4. Nxd4 {[%clk 0:03:01]}  Nf6 {[%clk 0:03:01]} 5. Nc3 {[%clk 0:03:02]}  a6 {[%clk 0:03:02]} 6. Rg1 {[%clk 0:03:02]}  e5 {[%clk 0:03:01]} 7. Nb3 {[%clk 0:03:02]}  h5 {[%clk 0:03:00]} 8. h3 {[%clk 0:03:03]}  h4 {[%clk 0:02:51]} 9. Be3 {[%clk 0:02:58]}  Be6 {[%clk 0:02:49]} 10. Qd2 {[%clk 0:02:56]}  Be7 {[%clk 0:02:41]} 11. O-O-O {[%clk 0:02:53]}  Nbd7 {[%clk 0:02:39]} 12. f4 {[%clk 0:02:53]}  Rc8 {[%clk 0:02:36]} 13. Kb1 {[%clk 0:02:44]}  b5 {[%clk 0:02:30]} 14. Bd3 {[%clk 0:02:35]}  Bc4 {[%clk 0:02:28]} 15. g3 {[%clk 0:01:56]}  hxg3 {[%clk 0:02:24]} 16. Rxg3 {[%clk 0:01:54]}  Nh5 {[%clk 0:02:20]} 17. Rg2 {[%clk 0:01:40]}  Bxd3 {[%clk 0:02:00]} 18. cxd3 {[%clk 0:01:29]}  exf4 {[%clk 0:01:35]} 19. Bxf4 {[%clk 0:01:28]}  Ne5 {[%clk 0:01:34]} 20. Nd5 {[%clk 0:01:20]}  Bf6 {[%clk 0:01:22]} 21. Bg5 {[%clk 0:01:03]}  Nf3 {[%clk 0:01:17]} 22. Qf2 {[%clk 0:00:35]}  Nxg5 {[%clk 0:01:15]} 23. Qf5 {[%clk 0:00:28]}  Ne6 {[%clk 0:01:06]} 24. Rf1 {[%clk 0:00:18]}  g6 {[%clk 0:00:51]} 25. Nxf6+ {[%clk 0:00:18]}  Nxf6 {[%clk 0:00:33]} 26. Rxg6 {[%clk 0:00:17]}  Qc7 {[%clk 0:00:03]} 27. Rxf6 {[%clk 0:00:10]}  Rf8 {[%clk 0:00:01]} 28. Rc1 {[%clk 0:00:08]}  Qd7 {[%clk 0:00:01]} 29. Rxc8+ {[%clk 0:00:07]}  Qxc8 {[%clk 0:00:02]} 30. Nd4 {[%clk 0:00:05]}  Ke7 {[%clk 0:00:02]} 31. Nf3 {[%clk 0:00:02]}  Qe8 {[%clk 0:00:01]} 32. Rh6 {[%clk 0:00:02]}  Rg8 {[%clk 0:00:01]} 33. Qf6+ {[%clk 0:00:02]}  Kd7 {[%clk 0:00:02]} 34. Rh7 {[%clk 0:00:02]}  Rf8 {[%clk 0:00:01]} 35. h4 {[%clk 0:00:02]}  Nd8 {[%clk 0:00:01]} 36. Qf5+ {[%clk 0:00:02]}  Kc7 {[%clk 0:00:01]} 37. Nd4 {[%clk 0:00:02]}  Rg8 {[%clk 0:00:01]} 38. a3 {[%clk 0:00:01]}  Rg1+ {[%clk 0:00:01]} 39. Ka2 {[%clk 0:00:01]} 1-0


[Site "https://www.chess.com"]